Workbook

Sheet Calcul Surface
B1: Lames composite pour BARDAGE Green Outside
B10: INFOS à renseigner…
B12: Longueur de la façade à couvrir en m.l. | F12: 6 | G12: Marge de | H12: 0.05
B13: Hauteur de la façade à couvrir en m.l. | F13: 3 | G13: Sécurité :
B14: Dimension peripherie pour finition en m.l. | F14: 18
H15: 5 à 8% recommandé
B17: COLORIS à choisir | E17: CHOIX de votre lame de Bardage
D25: Green Outside : Lames composite de qualité supérieure
D26: 60% bois recyclés, 35% PEHD, 5% adjuvants sélectionnés
D28: Livraison directe domicile clients possible sous 15 -20 jours
D30: Pour tout renseignement : | G30: secretariat@green-outside.com
D32: Pour tout suivi de livraison, tel : 04 74 55 36 54

Sheet Gencode (hidden)
A1: Lame Bardage Composite Green Outside | B1: Gencode | D1: Prix généralement constatés
C2: Prix TTC
A3: Lame Bardage Clin-Clic Chocolat 2600x146x21 mm | B3: 3760055271189 | C3: 15.9 | D3: 16
A4: Lame Bardage Clin-Clic Gris 2600x146x21 mm | B4: 3760055271196 | C4: 15.9 | D4: 16
A5: Lame Bardage Clin-Clic Anthracite 2600x146x21 mm | B5: 3760055271202 | C5: 15.9 | D5: 16
A6: Lame Bardage Clin-Clic Beige 2600x146x21 mm | B6: 3760055271530 | C6: 15.9 | D6: 16
A7: Rail de fixation pour bardage Clin Clic 98mm | B7: 3760055271226 | C7: 4.9 | D7: 4.9
C8: 0
A9: Lame Bardage Monoparoi Chocolat 2600x156x21 mm | B9: 3760055270595 | C9: 15.9 | D9: 16
A10: Lame Bardage Monoparoi Gris 2600x156x21 mm | B10: 3760055270601 | C10: 15.9 | D10: 16
A11: Lame Bardage Monoparoi Anthracite 2600x156x21 mm | B11: 3760055270618 | C11: 15.9 | D11: 16
A12: Lame Bardage Monoparoi Beige 2600x156x21 mm | B12: 3760055271547 | C12: 15.9 | D12: 16
C13: 0
A14: tasseau bois classe IV 27x45x2500 mm | B14: ? | C14: 0 | D14: 0
A15: tasseau bois classe IV 32x32x2000 mm | B15: ? | C15: 0 | D15: 0
C16: 0
A17: Profil de départ Galva 40 x 15 x 2000 mm | B17: ? | C17: 0 | D17: 0
A18: Profil d'aération anti-rongeur 30 x 30 x 2000 mm | B18: ? | C18: 0 | D18: 0
A19: Film pare pluie HPV R2 rouleau 30m x 1m | B19: ? | C19: 0 | D19: 0
C20: 0
A21: Cornière de finition Chocolat 30 x 50 x 2200 mm | B21: 3760055270144 | C21: 8.9 | D21: 6.9
A22: Cornière de finition Gris clair 30 x 50 x 2200 mm | B22: 3760055270151 | C22: 8.9 | D22: 6.9
A23: Cornière de finition Anthracite 30 x 50 x 2200 mm | B23: 3760055270663 | C23: 8.9 | D23: 6.9
A24: Cornière de finition Beige 30 x 50 x 2200 mm | B24: 3760055271554 | C24: 8.9 | D24: 6.9
A26: Plat de finition Chocolat 30 x 50 x 2200 mm | B26: 3760055270168 | C26: 8.9 | D26: 6.9
A27: Plat de finition Gris clair 30 x 50 x 2200 mm | B27: 3760055270175 | C27: 8.9 | D27: 6.9
A28: Plat de finition Anthracite 30 x 50 x 2200 mm | B28: 3760055270502 | C28: 8.9 | D28: 6.9
A29: Plat de finition Beige 30 x 50 x 2200 mm | B29: 3760055271561 | C29: 8.9 | D29: 6.9
A31: Lame Bardage Clair Voie Anthracite 2600x219x26mm | B31: 3760055272056 | C31: 25.9 | D31: 25.9
A32: Lame Bardage Clair Voie Gris 2600x219x26mm | B32: 3760055272063 | C32: 25.9 | D32: 25.9
A33: Lame Bardage Clair Voie bois cérusé 2600x219x26mm | B33: 3760055272070 | C33: 25.9 | D33: 25.9
A34: Lame Bardage Clair Voie Antique 2600x219x26mm | B34: 3760055272087 | C34: 25.9 | D34: 25.9

Sheet Devis Bard Monoparoi M
B1: Bardage composite Green Outside Pose sur tasseaux bois classe IV selon DTU 41.2
B18: Surface Totale (selon dimensions page 1) | D18: ='Calcul Surface'!F12*'Calcul Surface'!F13 -> 18 | E18: m²
B20: Lame bardage composite MONO PAROI | D20: BEIGE
B22: Références nécessaires pour le projet soumis | C22: Gencode | D22: Qté | E22: Prix TTC généralement constaté
B23: =B120 -> Lame Bardage Monoparoi Beige 2600x156x21 mm | C23: =VLOOKUP(B23,B117:C122,2,FALSE) -> 3760055271547 | D23: =VLOOKUP(B23,B117:D122,3,FALSE) -> 55 | E23: =VLOOKUP(B23,B117:E122,4,FALSE) -> 15.9 | F23: =VLOOKUP(B23,B117:G120,6,FALSE) -> 874.5
B24: =B133 -> Cornière de finition Beige 30 x 50 x 2200 mm | C24: =VLOOKUP(B24,B130:C133,2,FALSE) -> 3760055271554 | D24: =VLOOKUP(C24,C130:D133,2,FALSE) -> 9 | E24: =VLOOKUP(D24,D130:E133,2,FALSE) -> 8.9 | F24: =VLOOKUP(B24,B130:G133,6,FALSE) -> 80.1
B25: Pour la mise en œuvre de votre bardage composite, vous aurez besoin des produits complémentaires suivant: | F25: -
B26: Tasseaux bois classe IV existe en 27 x 45 x 2500 mm | C26: =VLOOKUP(B26,B123:C128,2,FALSE) -> A voir en magasin | D26: =VLOOKUP(B26,B123:G127,3,FALSE) -> 22 | E26: =VLOOKUP(C26,C123:H127,3,FALSE) -> 0 | F26: =VLOOKUP(B26,B123:G128,6,FALSE) -> 0
B27: Profil de départ Galva existe en 40 x 15 x 2000 mm | C27: =VLOOKUP(B27,B126:C128,2,FALSE) -> A voir en magasin | D27: =VLOOKUP(B27,B126:D128,3,FALSE) -> 12 | E27: =VLOOKUP(B27,B126:E128,4,FALSE) -> 0 | F27: =VLOOKUP(B27,B126:G129,6,FALSE) -> 0
B28: Grille d'aération anti-rongeur existe en 30 x 30 x 2000 mm | C28: =VLOOKUP(B28,B127:C129,2,FALSE) -> A voir en magasin | D28: =VLOOKUP(B28,B127:D129,3,FALSE) -> 12 | E28: =VLOOKUP(B28,B127:E129,4,FALSE) -> 0 | F28: =VLOOKUP(B28,B126:G129,6,FALSE) -> 0
B29: Film pare pluie existe en rouleau 30m x 1m | C29: =VLOOKUP(B29,B126:C128,2,FALSE) -> A voir en magasin | D29: =VLOOKUP(B29,B126:D128,3,FALSE) -> 1 | E29: =VLOOKUP(B29,B126:E128,4,FALSE) -> 0 | F29: =VLOOKUP(B29,B126:G129,6,FALSE) -> 0
D30: Total TTC | F30: =F23+F24+F27+F28+F26+F29 -> 954.6
D31: soit prix /m² | F31: =F30/D18 -> 53.03333333
D33: devis quantitatif selon données client, rapprochez vous de votre magasin pour une validation tarifaire.
D35: fait depuis le site Web Green Outside le | F35: =TODAY() -> 2020-07-27
B37: Il revient au client final de vérifier que les quantités proposées correspondent bien à ses besoins au moment de valider sa commande.
B38: Seules les références Green Outside peuvent être prises en compte pour les commandes en livraison directe chez le client.
B39: Pour la fixation des profils de finition, un pré-percage est nécessaire avant vissage, sinon, vous risquez de fendre le profil.
B40: Besoin de quantité produits et prix indiqués à titre indicatif.
B48: Retrouvez nous sur www.green-outside.com
B90: Et pour completer vos travaux d'aménagement,
B91: retrouvez nos lames de terrasse .
B93: Lame de Terrasse Alvéolaire -- Lame de Terrasse PLEINE -- Lame de Terrasse Extra-Protect
B115: lame Bardage Green Outside | C115: code | D115: qqte | F115: prix unitaire | G115: total ttc
B117: =Gencode!A9 -> Lame Bardage Monoparoi Chocolat 2600x156x21 mm | C117: =Gencode!B9 -> 3760055270595 | D117: =ROUNDUP(H117,0) -> 55 | E117: =Gencode!C9 -> 15.9 | F117: =E117 -> 15.9 | G117: =F117*D117 -> 874.5 | H117: ='Calcul Surface'!F12*'Calcul Surface'!F13*I117 -> 54.24799082 | I117: =(1/(2.6*0.134))*(1+'Calcul Surface'!$H$12) -> 3.013777268
B118: =Gencode!A10 -> Lame Bardage Monoparoi Gris 2600x156x21 mm | C118: =Gencode!B10 -> 3760055270601 | D118: 55 | E118: =Gencode!C10 -> 15.9 | F118: =E118 -> 15.9 | G118: =F118*D118 -> 874.5 | H118: ='Calcul Surface'!F12*'Calcul Surface'!F13*I117 -> 54.24799082
B119: =Gencode!A11 -> Lame Bardage Monoparoi Anthracite 2600x156x21 mm | C119: =Gencode!B11 -> 3760055270618 | D119: 55 | E119: =Gencode!C11 -> 15.9 | F119: 15.9 | G119: 874.5 | H119: ='Calcul Surface'!F12*'Calcul Surface'!F13*I117 -> 54.24799082
B120: =Gencode!A12 -> Lame Bardage Monoparoi Beige 2600x156x21 mm | C120: =Gencode!B12 -> 3760055271547 | D120: 55 | E120: =Gencode!C12 -> 15.9 | F120: 15.9 | G120: 874.5 | H120: ='Calcul Surface'!F12*'Calcul Surface'!F13*I117 -> 54.24799082
B123: Tasseaux bois classe IV existe en 27 x 45 x 2500 mm | C123: A voir en magasin | D123: 22 | E123: =Gencode!C14 -> 0 | F123: 0 | G123: 0 | H123: =I123/2.5 -> 21.42 | I123: =(((('Calcul Surface'!F12/0.5)+1)*('Calcul Surface'!F13))+('Calcul Surface'!F12*2))*(1+'Calcul Surface'!$H$12) -> 53.55
B124: Tasseau bois classe IV 32 x 32 x 2000 mm | C124: A voir en magasin | D124: 27 | E124: =Gencode!C15 -> 0 | F124: 0 | G124: 0 | H124: =I124/2 -> 26.775 | I124: =(((('Calcul Surface'!F12/0.5)+1)*('Calcul Surface'!F13))+('Calcul Surface'!F12*2))*(1+'Calcul Surface'!$H$12) -> 53.55
B126: Profil de départ Galva existe en 40 x 15 x 2000 mm | C126: A voir en magasin | D126: 12 | E126: =Gencode!C17 -> 0 | F126: 0 | G126: 0 | H126: =('Calcul Surface'!F12*2) -> 12
B127: Grille d'aération anti-rongeur existe en 30 x 30 x 2000 mm | C127: A voir en magasin | D127: 12 | E127: =Gencode!C18 -> 0 | F127: 0 | G127: 0 | H127: =('Calcul Surface'!F12*2) -> 12
B128: Film pare pluie existe en rouleau 30m x 1m | C128: A voir en magasin | D128: 1 | E128: =Gencode!C19 -> 0 | F128: 0 | G128: 0 | H128: =I128/30 -> 0.6 | I128: ='Calcul Surface'!F12*'Calcul Surface'!F13 -> 18
B130: =Gencode!A21 -> Cornière de finition Chocolat 30 x 50 x 2200 mm | C130: =Gencode!B21 -> 3760055270144 | D130: 9 | E130: =Gencode!C21 -> 8.9 | F130: 8.9 | G130: 80.1 | H130: =('Calcul Surface'!F14/2.2)*(1+'Calcul Surface'!$H$12) -> 8.590909091
B131: =Gencode!A22 -> Cornière de finition Gris clair 30 x 50 x 2200 mm | C131: =Gencode!B22 -> 3760055270151 | D131: 9 | E131: =Gencode!C22 -> 8.9 | F131: 8.9 | G131: 80.1 | H131: =('Calcul Surface'!F14/2.2)*(1+'Calcul Surface'!$H$12) -> 8.590909091
B132: =Gencode!A23 -> Cornière de finition Anthracite 30 x 50 x 2200 mm | C132: =Gencode!B23 -> 3760055270663 | D132: 9 | E132: =Gencode!C23 -> 8.9 | F132: 8.9 | G132: 80.1 | H132: =('Calcul Surface'!F14/2.2)*(1+'Calcul Surface'!$H$12) -> 8.590909091
B133: =Gencode!A24 -> Cornière de finition Beige 30 x 50 x 2200 mm | C133: =Gencode!B24 -> 3760055271554 | D133: 9 | E133: =Gencode!C24 -> 8.9 | F133: 8.9 | G133: 80.1 | H133: =('Calcul Surface'!F14/2.2)*(1+'Calcul Surface'!$H$12) -> 8.590909091

Sheet Devis Bard Alveolaire Clic
B1: Bardage composite Green Outside Pose sur rails et tasseaux bois classe IV selon DTU 41.2
B18: Surface Totale selon dimensions page 1 | D18: ='Calcul Surface'!F12*'Calcul Surface'!F13 -> 18 | E18: m²
B20: Lame bardage Alvéolaire CLIN CLIC | D20: BEIGE
C22: Gencode | D22: Qté | E22: Prix TTC généralement constaté
B23: =B125 -> Lame Bardage Clin-Clic Beige 2600x146x21 mm | C23: =VLOOKUP(B23,B122:C127,2,FALSE) -> 3760055271530 | D23: =VLOOKUP(B23,B122:D127,3,FALSE) -> 51 | E23: =VLOOKUP(B23,B122:G125,5,FALSE) -> 15.9 | F23: =VLOOKUP(B23,B122:G125,6,FALSE) -> 810.9
B24: Rail de fixation pour bardage Clin Clic 98mm | C24: =VLOOKUP(B24,B122:C126,2,FALSE) -> 3760055271226 | D24: =VLOOKUP(B24,B122:D127,3,FALSE) -> 41 | E24: =VLOOKUP(B24,B123:G126,5,FALSE) -> 4.9 | F24: =VLOOKUP(B24,B123:G126,6,FALSE) -> 200.9
B25: =B138 -> Cornière de finition Beige 30 x 50 x 2200 mm | C25: =VLOOKUP(B25,B134:C138,2,FALSE) -> 3760055271554 | D25: =VLOOKUP(B25,B134:D139,3,FALSE) -> 9 | E25: =VLOOKUP(B25,B135:G138,5,FALSE) -> 8.9 | F25: =VLOOKUP(B25,B135:G138,6,FALSE) -> 80.1
B26: Pour la mise en œuvre de votre bardage composite, vous aurez besoin des produits complémentaires suivant:
B27: Tasseaux bois classe IV existe en 27 x 45 x 2500 mm | C27: =VLOOKUP(B27,B128:G133,2,FALSE) -> A voir en magasin | D27: =VLOOKUP(B27,B128:G133,3,FALSE) -> 22 | E27: =VLOOKUP(B27,B125:G133,5,FALSE) -> 0 | F27: =VLOOKUP(B27,B123:G128,6,FALSE) -> 0
B28: Profil de départ Galva existe en 40 x 15 x 2000 mm | C28: =VLOOKUP(B28,B128:G134,2,FALSE) -> A voir en magasin | D28: =VLOOKUP(B28,B129:G134,3,FALSE) -> 12 | E28: =VLOOKUP(B28,B126:G134,5,FALSE) -> 0 | F28: =VLOOKUP(B28,B127:G135,6,FALSE) -> 0
B29: Grille d'aération anti-rongeur existe en 30 x 30 x 2000 mm | C29: =VLOOKUP(B29,B131:C133,2,FALSE) -> A voir en magasin | D29: =VLOOKUP(B29,B130:G135,3,FALSE) -> 12 | E29: =VLOOKUP(B29,B127:G135,5,FALSE) -> 0 | F29: =VLOOKUP(B29,B128:G136,6,FALSE) -> 0
B30: Film pare pluie existe en rouleau 30m x 1m | C30: =VLOOKUP(B30,B130:H133,2,FALSE) -> A voir en magasin | D30: =VLOOKUP(B30,B131:G136,3,FALSE) -> 1 | E30: =VLOOKUP(B30,B128:G136,5,FALSE) -> 0 | F30: =VLOOKUP(B30,B129:G137,6,FALSE) -> 0
D31: Total TTC | F31: =F23+F26+F27+F28+F30+F24+F29+F25 -> 1091.9
D32: soit prix /m² | F32: =F31/D18 -> 60.66111111
D34: devis quantitatif selon données client, rapprochez vous de votre magasin pour une validation tarifaire.
D36: fait depuis le site Web Green Outside le | F36: =TODAY() -> 2020-07-27
B38: Il revient au client final de vérifier que les quantités proposées correspondent bien à ses besoins au moment de valider sa commande.
B39: Seules les références Green Outside peuvent être prises en compte pour les commandes en livraison directe chez le client.
B40: Pour la fixation des profils de finition, un pré-percage est nécessaire avant vissage, sinon, vous risquez de fendre le profil.
B41: Besoin de quantité produits et prix indiqués à titre indicatif.
B47: Retrouvez nous sur www.green-outside.com
B88: Et pour completer vos travaux d'aménagement,
B89: retrouvez nos lames de terrasse .
B91: Lame de Terrasse Alvéolaire -- Lame de Terrasse PLEINE -- Lame de Terrasse Extra-Protect
B120: lame Bardage Green Outside | C120: code | D120: qqte | F120: prix unitaire | G120: total ttc
B122: =Gencode!A3 -> Lame Bardage Clin-Clic Chocolat 2600x146x21 mm | C122: =Gencode!B3 -> 3760055271189 | D122: =ROUNDUP(H122,0) -> 51 | E122: =Gencode!C3 -> 15.9 | F122: =E122 -> 15.9 | G122: =F122*D122 -> 810.9 | H122: ='Calcul Surface'!F12*'Calcul Surface'!F13*I122 -> 50.13262599 | I122: =(1/(2.6*0.145))*(1+'Calcul Surface'!$H$12) -> 2.785145889
B123: =Gencode!A4 -> Lame Bardage Clin-Clic Gris 2600x146x21 mm | C123: =Gencode!B4 -> 3760055271196 | D123: 51 | E123: =Gencode!C4 -> 15.9 | F123: 15.9 | G123: =F123*D123 -> 810.9 | H123: ='Calcul Surface'!F12*'Calcul Surface'!F13*I122 -> 50.13262599
B124: =Gencode!A5 -> Lame Bardage Clin-Clic Anthracite 2600x146x21 mm | C124: =Gencode!B5 -> 3760055271202 | D124: 51 | E124: =Gencode!C5 -> 15.9 | F124: 15.9 | G124: 810.9 | H124: ='Calcul Surface'!F12*'Calcul Surface'!F13*I122 -> 50.13262599
B125: =Gencode!A6 -> Lame Bardage Clin-Clic Beige 2600x146x21 mm | C125: =Gencode!B6 -> 3760055271530 | D125: 51 | E125: =Gencode!C6 -> 15.9 | F125: 15.9 | G125: 810.9 | H125: ='Calcul Surface'!F12*'Calcul Surface'!F13*I122 -> 50.13262599
B126: =Gencode!A7 -> Rail de fixation pour bardage Clin Clic 98mm | C126: =Gencode!B7 -> 3760055271226 | D126: 41 | E126: =Gencode!C7 -> 4.9 | F126: 4.9 | G126: 200.9 | H126: =I126 -> 40.95 | I126: =(((('Calcul Surface'!F12/0.5)+1)*('Calcul Surface'!F13)))*(1+'Calcul Surface'!$H$12) -> 40.95
B128: Tasseaux bois classe IV existe en 27 x 45 x 2500 mm | C128: A voir en magasin | D128: 22 | E128: =Gencode!C14 -> 0 | F128: =E128 -> 0 | G128: 0 | H128: =I128/2.5 -> 21.42 | I128: =(((('Calcul Surface'!F12/0.5)+1)*('Calcul Surface'!F13))+('Calcul Surface'!F12*2))*(1+'Calcul Surface'!$H$12) -> 53.55
B129: Tasseau bois classe IV 32 x 32 x 2000 mm | C129: A voir en magasin | D129: 27 | E129: =Gencode!C15 -> 0 | F129: 0 | G129: 0 | H129: =I129/2 -> 26.775 | I129: =(((('Calcul Surface'!F12/0.5)+1)*('Calcul Surface'!F13))+('Calcul Surface'!F12*2))*(1+'Calcul Surface'!$H$12) -> 53.55
E130: =Gencode!C16 -> 0 | F130: 0
B131: Profil de départ Galva existe en 40 x 15 x 2000 mm | C131: A voir en magasin | D131: 12 | E131: =Gencode!C17 -> 0 | F131: 0 | G131: 0 | H131: =('Calcul Surface'!F12*2) -> 12
B132: Grille d'aération anti-rongeur existe en 30 x 30 x 2000 mm | C132: A voir en magasin | D132: 12 | E132: =Gencode!C18 -> 0 | F132: 0 | G132: 0 | H132: =('Calcul Surface'!F12*2) -> 12
B133: Film pare pluie existe en rouleau 30m x 1m | C133: A voir en magasin | D133: 1 | E133: =Gencode!C19 -> 0 | F133: 0 | G133: 0 | H133: =I133/30 -> 0.6 | I133: ='Calcul Surface'!F12*'Calcul Surface'!F13 -> 18
B134: =Gencode!A20 ->  | C134: =Gencode!B20 -> 
B135: =Gencode!A21 -> Cornière de finition Chocolat 30 x 50 x 2200 mm | C135: =Gencode!B21 -> 3760055270144 | D135: 9 | E135: =Gencode!C21 -> 8.9 | F135: 8.9 | G135: 80.1 | H135: =('Calcul Surface'!F14/2.2)*(1+'Calcul Surface'!$H$12) -> 8.590909091
B136: =Gencode!A22 -> Cornière de finition Gris clair 30 x 50 x 2200 mm | C136: =Gencode!B22 -> 3760055270151 | D136: 9 | E136: =Gencode!C22 -> 8.9 | F136: 8.9 | G136: 80.1 | H136: =('Calcul Surface'!F14/2.2)*(1+'Calcul Surface'!$H$12) -> 8.590909091
B137: =Gencode!A23 -> Cornière de finition Anthracite 30 x 50 x 2200 mm | C137: =Gencode!B23 -> 3760055270663 | D137: 9 | E137: =Gencode!C23 -> 8.9 | F137: 8.9 | G137: 80.1 | H137: =('Calcul Surface'!F14/2.2)*(1+'Calcul Surface'!$H$12) -> 8.590909091
B138: =Gencode!A24 -> Cornière de finition Beige 30 x 50 x 2200 mm | C138: =Gencode!B24 -> 3760055271554 | D138: 9 | E138: =Gencode!C24 -> 8.9 | F138: 8.9 | G138: 80.1 | H138: =('Calcul Surface'!F14/2.2)*(1+'Calcul Surface'!$H$12) -> 8.590909091

Sheet Devis Bard Clair Voie
B1: Bardage composite Green Outside Pose sur rails et tasseaux bois classe IV selon DTU 41.2
B18: Surface Totale (selon dimensions page 1) | D18: ='Calcul Surface'!F12*'Calcul Surface'!F13 -> 18 | E18: m²
B20: Lame bardage Coextrusion CLAIR VOIE | D20: ANTIQUE (crème)
B22: Références nécessaires pour le projet soumis | C22: Gencode | D22: Qté | E22: Prix TTC généralement constaté
B23: =B125 -> Lame Bardage Clair Voie Antique 2600x219x26mm | C23: =VLOOKUP(B23,B122:C127,2,FALSE) -> 3760055272087 | D23: =VLOOKUP(B23,B122:D127,3,FALSE) -> 37 | E23: =VLOOKUP(B23,B122:G125,5,FALSE) -> 25.9 | F23: =VLOOKUP(B23,B122:G125,6,FALSE) -> 958.3
B25: =B138 -> Cornière coextrudée antique (crème) 57x57x2200 mm | C25: =VLOOKUP(B25,B134:C138,2,FALSE) -> 3760055272124 | D25: =VLOOKUP(B25,B134:D139,3,FALSE) -> 9 | E25: =VLOOKUP(B25,B135:G138,5,FALSE) -> 8.9 | F25: =VLOOKUP(B25,B135:G138,6,FALSE) -> 80.1
B26: Pour la mise en œuvre de votre bardage composite, vous aurez besoin des produits complémentaires suivant:
B27: Tasseaux bois classe IV existe en 27 x 45 x 2500 mm | C27: =VLOOKUP(B27,B128:G133,2,FALSE) -> A voir en magasin | D27: =VLOOKUP(B27,B128:G133,3,FALSE) -> 22 | E27: =VLOOKUP(B27,B125:G133,5,FALSE) -> 0 | F27: =VLOOKUP(B27,B123:G128,6,FALSE) -> 0
B28: Profil de départ Galva existe en 40 x 15 x 2000 mm | C28: =VLOOKUP(B28,B128:G134,2,FALSE) -> A voir en magasin | D28: =VLOOKUP(B28,B129:G134,3,FALSE) -> 12 | E28: =VLOOKUP(B28,B126:G134,5,FALSE) -> 0 | F28: =VLOOKUP(B28,B127:G135,6,FALSE) -> 0
B29: Grille d'aération anti-rongeur existe en 30 x 30 x 2000 mm | C29: =VLOOKUP(B29,B131:C133,2,FALSE) -> A voir en magasin | D29: =VLOOKUP(B29,B130:G135,3,FALSE) -> 12 | E29: =VLOOKUP(B29,B127:G135,5,FALSE) -> 0 | F29: =VLOOKUP(B29,B128:G136,6,FALSE) -> 0
B30: Film pare pluie existe en rouleau 30m x 1m | C30: =VLOOKUP(B30,B130:H133,2,FALSE) -> A voir en magasin | D30: =VLOOKUP(B30,B131:G136,3,FALSE) -> 1 | E30: =VLOOKUP(B30,B128:G136,5,FALSE) -> 0 | F30: =VLOOKUP(B30,B129:G137,6,FALSE) -> 0
D31: Total TTC | F31: =F23+F26+F27+F28+F30+F24+F29+F25 -> 1038.4
D32: soit prix /m² | F32: =F31/D18 -> 57.68888889
D34: devis quantitatif selon données client, rapprochez vous de votre magasin pour une validation tarifaire.
D36: fait depuis le site Web Green Outside le | F36: =TODAY() -> 2020-07-27
B38: Il revient au client final de vérifier que les quantités proposées correspondent bien à ses besoins au moment de valider sa commande.
B39: Seules les références Green Outside peuvent être prises en compte pour les commandes en livraison directe chez le client.
B40: Pour la fixation des profils de finition, un pré-percage est nécessaire avant vissage, sinon, vous risquez de fendre le profil.
B41: Besoin de quantité produits et prix indiqués à titre indicatif.
B47: Retrouvez nous sur www.green-outside.com
B88: Et pour completer vos travaux d'aménagement,
B89: retrouvez nos lames de terrasse .
B91: Lame de Terrasse Alvéolaire -- Lame de Terrasse PLEINE -- Lame de Terrasse Extra-Protect
B120: lame Bardage Green Outside | C120: code | D120: qqte | F120: prix unitaire | G120: total ttc
B122: =Gencode!A33 -> Lame Bardage Clair Voie bois cérusé 2600x219x26mm | C122: =Gencode!B31 -> 3760055272056 | D122: =ROUNDUP(H122,0) -> 37 | E122: =Gencode!C31 -> 25.9 | F122: =E122 -> 25.9 | G122: =F122*D122 -> 958.3 | H122: ='Calcul Surface'!F12*'Calcul Surface'!F13*I122 -> 36.34615385 | I122: =(1/(2.6*0.2))*(1+'Calcul Surface'!$H$12) -> 2.019230769
B123: =Gencode!A32 -> Lame Bardage Clair Voie Gris 2600x219x26mm | C123: =Gencode!B32 -> 3760055272063 | D123: 37 | E123: =Gencode!C32 -> 25.9 | F123: 25.9 | G123: =F123*D123 -> 958.3 | H123: ='Calcul Surface'!F12*'Calcul Surface'!F13*I122 -> 36.34615385
B124: =Gencode!A31 -> Lame Bardage Clair Voie Anthracite 2600x219x26mm | C124: =Gencode!B33 -> 3760055272070 | D124: 37 | E124: =Gencode!C33 -> 25.9 | F124: 25.9 | G124: 958.3 | H124: ='Calcul Surface'!F12*'Calcul Surface'!F13*I122 -> 36.34615385
B125: =Gencode!A34 -> Lame Bardage Clair Voie Antique 2600x219x26mm | C125: =Gencode!B34 -> 3760055272087 | D125: 37 | E125: =Gencode!C34 -> 25.9 | F125: 25.9 | G125: 958.3 | H125: ='Calcul Surface'!F12*'Calcul Surface'!F13*I122 -> 36.34615385
G126: 0
B128: Tasseaux bois classe IV existe en 27 x 45 x 2500 mm | C128: A voir en magasin | D128: 22 | E128: =Gencode!C14 -> 0 | F128: =E128 -> 0 | G128: 0 | H128: =I128/2.5 -> 21.42 | I128: =(((('Calcul Surface'!F12/0.5)+1)*('Calcul Surface'!F13))+('Calcul Surface'!F12*2))*(1+'Calcul Surface'!$H$12) -> 53.55
B129: Tasseau bois classe IV 32 x 32 x 2000 mm | C129: A voir en magasin | D129: 27 | E129: =Gencode!C15 -> 0 | F129: 0 | G129: 0 | H129: =I129/2 -> 26.775 | I129: =(((('Calcul Surface'!F12/0.5)+1)*('Calcul Surface'!F13))+('Calcul Surface'!F12*2))*(1+'Calcul Surface'!$H$12) -> 53.55
E130: =Gencode!C16 -> 0 | F130: 0
B131: Profil de départ Galva existe en 40 x 15 x 2000 mm | C131: A voir en magasin | D131: 12 | E131: =Gencode!C17 -> 0 | F131: 0 | G131: 0 | H131: =('Calcul Surface'!F12*2) -> 12
B132: Grille d'aération anti-rongeur existe en 30 x 30 x 2000 mm | C132: A voir en magasin | D132: 12 | E132: =Gencode!C18 -> 0 | F132: 0 | G132: 0 | H132: =('Calcul Surface'!F12*2) -> 12
B133: Film pare pluie existe en rouleau 30m x 1m | C133: A voir en magasin | D133: 1 | E133: =Gencode!C19 -> 0 | F133: 0 | G133: 0 | H133: =I133/30 -> 0.6 | I133: ='Calcul Surface'!F12*'Calcul Surface'!F13 -> 18
B134: =Gencode!A20 ->  | C134: =Gencode!B20 -> 
B135: Cornière coextrudée bois cérusé 57x57x2200 mm | C135: 3760055272117 | D135: 9 | E135: =Gencode!C21 -> 8.9 | F135: 8.9 | G135: 80.1 | H135: =('Calcul Surface'!F14/2.2)*(1+'Calcul Surface'!$H$12) -> 8.590909091
B136: Cornière coextrudée gris 57x57x2200 mm | C136: 3760055272100 | D136: 9 | E136: =Gencode!C22 -> 8.9 | F136: 8.9 | G136: 80.1 | H136: =('Calcul Surface'!F14/2.2)*(1+'Calcul Surface'!$H$12) -> 8.590909091
B137: Cornière coextrudée anthracite 57x57x2200 mm | C137: 3760055272094 | D137: 9 | E137: =Gencode!C23 -> 8.9 | F137: 8.9 | G137: 80.1 | H137: =('Calcul Surface'!F14/2.2)*(1+'Calcul Surface'!$H$12) -> 8.590909091
B138: Cornière coextrudée antique (crème) 57x57x2200 mm | C138: 3760055272124 | D138: 9 | E138: =Gencode!C24 -> 8.9 | F138: 8.9 | G138: 80.1 | H138: =('Calcul Surface'!F14/2.2)*(1+'Calcul Surface'!$H$12) -> 8.590909091

Sheet Parrainage
